bitfinex-derivatives/quotes_SOLF0:USTF0_20251202
["timestamp","ask_amount","ask_price","bid_price","bid_amount"]
[1764637652232,7.22654105,128.08,128.0,116.4142]
[1764637652438,7.22654105,128.08,128.01,109.3716]
[1764637652743,7.22654105,128.09,128.01,109.3716]
[1764637652940,7.22654105,128.1,128.02,116.3954]
[1764637653238,7.22654105,128.1,127.98,69.1]
[1764637653239,3.35384373,128.07,127.96,109.4099]
[1764637653431,3.3,128.07,127.96,116.4438]
[1764637653637,6.04470033,128.06,127.96,116.4438]
[1764637653846,3.3,128.06,127.96,116.4438]
[1764637654046,3.3,128.1,128.0,109.3741]
[1764637654242,3.3,128.1,127.99,109.3888]
[1764637654243,0.05405886,128.06,128.04,0.0500402]
[1764637654446,3.35405886,128.06,128.04,0.0500402]
[1764637654641,0.05405886,128.06,128.04,0.0500402]
[1764637655342,0.05405886,128.06,128.04,109.3959402]
[1764637655537,3.3,128.14,128.06,109.3288]
[1764637656044,7.22654105,128.21,128.06,109.3288]
[1764637656045,3.3,128.18,128.09,116.3299]
[1764637656435,3.3,128.18,128.06,109.3288]
[1764637656436,3.35110155,128.15,128.12,0.05215082]
[1764637656638,3.35270598,128.15,128.12,0.05935342]
[1764637657348,0.05270598,128.15,128.12,0.05935342]
[1764637657941,0.05270598,128.15,128.13,109.2675]
[1764637658247,0.05270598,128.15,128.12,0.05935342]
[1764637658437,0.05270598,128.15,128.12,109.33675342]
[1764637658854,3.27270598,128.15,128.12,0.05935342]
[1764637659445,3.27270598,128.15,128.12,109.33665342]
[1764637659446,0.05270598,128.15,128.12,109.33665342]
[1764637659744,0.05270598,128.15,128.12,0.05935342]
[1764637659951,3.27270598,128.15,128.12,0.05935342]
[1764637660549,3.27270598,128.15,128.08,7.027]
[1764637661653,3.27270598,128.15,128.1,0.04856978]
[1764637663740,3.27270598,128.15,128.12,109.2794]
[1764637663741,0.05270598,128.15,128.12,109.2794]
[1764637663941,3.22,128.2,128.14,109.2562]
[1764637664139,3.22,128.2,128.13,109.2676]
[1764637664341,3.22,128.2,128.13,7.0245]
[1764637664750,3.22,128.2,128.14,109.2581]
[1764637665053,3.2763899,128.18,128.16,0.0564423]
[1764637665254,3.27760568,128.18,128.16,0.05474761]
[1764637665551,0.05760568,128.18,128.16,0.05474761]
[1764637666854,0.05760568,128.18,128.16,116.32274761]
[1764637668445,3.22,128.26,128.19,116.238]
[1764637669055,3.22,128.26,128.21,7.02]
[1764637669443,0.05242741,128.25,128.22,0.05576006]
[1764637669647,0.05242741,128.25,128.22,0.05862227]
[1764637670047,0.05242741,128.25,128.23,7.0191]
[1764637670450,0.05242741,128.25,128.22,0.05862227]
[1764637670754,0.05242741,128.25,128.22,109.25102227]
[1764637670958,0.05242741,128.25,128.22,178.53102227]
[1764637671256,0.05242741,128.25,128.23,116.2018]
[1764637671646,3.27242741,128.25,128.22,0.05862227]
[1764637673157,3.22,128.24,128.15,69.26]
[1764637673353,3.22,128.22,128.11,109.2819]
[1764637673547,3.22,128.21,128.09,109.3056]
[1764637673755,3.22,128.21,128.09,178.5656]
[1764637674062,0.0519129,128.16,128.14,0.0573366]
[1764637674260,0.05832363,128.16,128.14,0.0573366]
[1764637674662,3.27832363,128.16,128.14,0.0573366]
[1764637675546,0.05832363,128.16,128.14,0.0573366]
[1764637676362,3.27832363,128.16,128.14,0.0573366]
[1764637678059,0.05832363,128.16,128.14,0.0573366]
[1764637678267,3.27832363,128.16,128.14,0.0573366]
[1764637678559,3.27832363,128.16,128.05,109.3358]
[1764637678749,3.22,128.16,128.07,7.0277]
[1764637678956,3.22,128.16,128.07,109.3226]
[1764637679153,3.22,128.16,128.05,178.5958]
[1764637679353,3.22,128.14,128.05,69.26]
[1764637679753,0.04987002,128.11,128.08,0.04292257]
[1764637680358,112.55907002,128.11,128.01,109.3667]
[1764637680563,112.55907002,128.11,127.98,109.395]
[1764637680564,3.22,128.09,127.98,109.395]
[1764637680765,109.3322,128.06,127.95,178.6403]
[1764637681061,7.0296,128.04,127.95,116.4545]
[1764637681260,7.0296,128.04,127.75,117.52824265]
[1764637681261,3.22,127.99,127.89,109.4726]
[1764637681453,9.06367579,127.98,127.89,109.4726]
[1764637681654,0.05970964,127.95,127.89,109.4726]
[1764637681850,0.05970964,127.95,127.89,7.0377]
[1764637682157,3.27970964,127.95,127.86,109.496]
[1764637682354,0.04995175,127.92,127.87,7.0388]
[1764637682563,0.04995175,127.92,127.83,109.5238]
[1764637682564,3.26995175,127.92,127.83,109.5238]
[1764637682860,3.27341291,127.89,127.81,109.5397]
[1764637683054,3.27792554,127.86,127.81,7.0416]
[1764637683553,0.05792554,127.86,127.81,116.5839]
[1764637683948,109.4366,127.94,127.84,109.5114]
[1764637683949,3.22,127.94,127.84,109.5114]
[1764637684253,3.22,127.97,127.88,109.4799]
[1764637684452,3.22,127.97,127.9,109.4636]
[1764637684658,3.22,128.01,127.91,109.4546]
[1764637684855,3.22,128.01,127.92,109.4475]
[1764637685047,3.27087677,127.97,127.91,109.4546]
[1764637685248,3.27087677,127.97,127.87,109.4899]
[1764637685454,72.6,127.96,127.87,109.4899]
[1764637685762,109.3943,127.99,127.86,109.4981]
[1764637685763,3.22,127.99,127.9,109.4656]
[1764637686059,3.22,127.97,127.88,109.4803]
[1764637686253,3.22,127.97,127.84,109.5173]
[1764637686254,3.22,127.94,127.84,109.5173]
[1764637686454,3.27859426,127.9,127.82,109.5327]
[1764637686654,3.22,127.9,127.82,109.5327]
[1764637686854,0.05925048,127.87,127.83,109.5211]
[1764637687056,3.27925048,127.87,127.78,109.5651]
[1764637687256,0.05827832,127.84,127.79,109.5556]
[1764637687462,0.05827832,127.84,127.8,109.5471]
[1764637687965,0.05827832,127.84,127.8,7.0423]
[1764637688461,0.05827832,127.84,127.83,116.5688]
[1764637688664,3.37,127.95,127.86,109.5007]
[1764637688869,3.37,127.95,127.84,109.5116]
[1764637689358,3.37,127.95,127.81,109.5394]
[1764637689359,3.37,127.91,127.81,109.5394]
[1764637689560,3.37,127.91,127.84,109.5156]
[1764637689868,0.05085368,127.87,127.85,226.1139076]
[1764637690060,3.37,127.95,127.86,109.4991]
[1764637690260,3.37,127.95,127.85,109.5075]
[1764637690460,3.37,127.95,127.87,116.5269]
[1764637690653,3.37,127.95,127.86,109.4986]
[1764637690857,3.37,127.91,127.81,109.5398]
[1764637691058,3.41931098,127.87,127.85,0.05320579]
[1764637691259,3.4262371,127.87,127.85,0.05320579]
[1764637692065,0.0562371,127.87,127.85,0.05320579]
[1764637692363,0.0562371,127.87,127.85,111.11730579]
[1764637692569,0.0562371,127.87,127.86,7.0394]
[1764637693469,0.0562371,127.87,127.86,8.5994]
[1764637693764,0.0562371,127.87,127.85,0.05320579]
[1764637694065,3.4262371,127.87,127.85,0.05320579]
[1764637694266,0.0562371,127.87,127.85,0.05320579]
[1764637697473,69.62,127.95,127.86,109.4989]
[1764637697768,119.03208807,127.99,127.89,109.4765]
[1764637697769,3.37,127.96,127.89,109.4765]
[1764637697968,3.37,127.96,127.89,7.0372]
[1764637698463,3.37,127.96,127.87,7.0386]
[1764637698665,3.42184791,127.94,127.91,0.05034964]
[1764637699456,3.42184791,127.94,127.83,109.5206]
[1764637699457,3.37,127.93,127.83,109.5206]
[1764637699667,3.37,127.92,127.83,7.0408]
[1764637700069,3.37,127.92,127.83,116.5689]
[1764637700271,3.37,127.92,127.85,109.5104]
[1764637700476,0.05940241,127.89,127.87,109.4903]
[1764637700774,3.37,127.96,127.89,109.4699]
[1764637701171,3.37,128.0,127.9,109.4618]
[1764637701373,9.16710566,128.0,127.91,109.4536]
[1764637701570,3.37,127.99,127.91,109.4536]
[1764637701771,0.05839052,127.96,127.94,0.05010031]
[1764637703371,0.05839052,127.96,127.94,7.08460031]
[1764637703581,0.05839052,127.96,127.94,116.51600031]
[1764637704672,0.05839052,127.96,127.94,0.05010031]
[1764637704673,3.42839052,127.96,127.94,0.05010031]
[1764637704867,4.98839052,127.96,127.88,109.481]
[1764637705068,3.37,127.96,127.88,109.481]
[1764637705568,3.37,127.96,127.91,7.0366]
[1764637705971,0.05696736,127.95,127.92,0.04982963]
[1764637706269,0.05696736,127.95,127.92,7.08562963]
[1764637706772,3.42696736,127.95,127.92,0.04982963]
[1764637706971,0.05696736,127.95,127.92,0.04982963]
[1764637707468,3.42696736,127.95,127.92,0.04982963]
[1764637709069,0.05696736,127.95,127.9,7.0371]
[1764637709378,3.42696736,127.95,127.87,109.4923]
[1764637709673,9.31015499,127.94,127.86,109.4984]
[1764637709872,3.37,127.94,127.86,109.4984]
[1764637710070,0.05839846,127.91,127.89,0.05326408]
[1764637710275,0.05548112,127.91,127.89,0.05049555]
[1764637710865,3.33548112,127.91,127.89,0.05049555]
[1764637711271,0.05548112,127.91,127.89,0.05049555]
[1764637712172,0.05548112,127.91,127.89,116.56369555]
[1764637712765,0.05548112,127.91,127.89,0.05049555]
[1764637713773,3.33548112,127.91,127.89,0.05049555]
[1764637714681,3.33548112,127.91,127.83,76.7009]
[1764637714983,69.66,127.93,127.84,109.518]
[1764637715181,5.96429995,127.92,127.84,109.518]
[1764637715372,5.96429995,127.91,127.86,7.0392]
[1764637715572,0.05192982,127.9,127.87,0.02179542]
[1764637715976,3.33192982,127.9,127.87,0.02179542]
[1764637716368,0.05192982,127.9,127.87,0.02179542]
[1764637717381,6.00045138,127.89,127.87,0.02179542]
[1764637717577,0.05192982,127.9,127.87,0.02179542]
[1764637717774,6.00080199,127.89,127.87,0.02179542]
[1764637717975,6.00080199,127.88,127.87,0.02179542]
[1764637718174,9.28080199,127.88,127.87,0.02179542]
[1764637718480,9.28080199,127.88,127.81,179.2024]
[1764637718780,3.25,127.86,127.81,69.66]
[1764637719079,6.00080199,127.85,127.78,109.5653]
[1764637719378,13.10403972,127.84,127.77,179.2184]
[1764637719683,0.05109577,127.82,127.79,7.043]
[1764637719881,0.05109577,127.82,127.78,109.566]
[1764637720282,6.02327789,127.81,127.78,179.186]
[1764637720483,6.02327789,127.8,127.79,7.0432]
[1764637720785,0.05109577,127.82,127.79,109.5591]
[1764637721983,0.05109577,127.82,127.79,115.29223081]
[1764637722379,7.10323773,127.86,127.82,109.5323]
[1764637722580,133.90524988,127.95,127.83,109.5264]
[1764637722581,7.10323773,127.87,127.83,109.5264]
[1764637722773,9.63538807,127.91,127.84,109.5178]
[1764637722974,2.78536559,127.9,127.84,109.5178]
[1764637723174,2.78536559,127.89,127.84,109.5178]
[1764637723375,2.85062512,127.88,127.85,0.05109577]
[1764637723575,0.05806784,127.88,127.86,76.6589]
[1764637725382,9.63538807,127.91,127.9,7.0372]
[1764637725684,9.63538807,127.92,127.9,7.0372]
[1764637725884,9.63538807,127.92,127.9,76.6172]
[1764637726085,9.63538807,127.93,127.91,7.0363]
[1764637726287,9.68548748,127.93,127.91,7.08883202]
[1764637726980,0.05009941,127.93,127.91,7.08883202]
[1764637727382,0.05009941,127.93,127.91,116.54813202]
[1764637730195,0.05009941,127.93,127.91,7.08883202]
[1764637730594,0.05009941,127.93,127.91,0.05253202]
[1764637730795,0.05009941,127.93,127.91,109.51103202]
[1764637731195,0.05009941,127.93,127.92,69.48]
[1764637731500,9.63538807,128.0,127.93,109.439]
[1764637731902,3.25,127.99,127.92,69.48]
[1764637732290,0.05058236,127.97,127.94,0.05473876]
[1764637732797,3.30058236,127.97,127.94,0.05473876]
[1764637732992,5.93477992,127.96,127.94,0.05473876]
[1764637733188,5.93477992,127.95,127.94,0.05473876]
[1764637733390,9.18477992,127.95,127.94,0.05473876]
[1764637734397,9.18477992,127.95,127.92,69.48]
[1764637734598,5.93477992,127.94,127.9,7.0369]
[1764637734799,3.25,127.97,127.89,69.42]
[1764637735004,9.18568255,127.96,127.89,69.42]
[1764637735308,3.25,127.94,127.89,69.42]
[1764637735509,3.25,127.92,127.9,0.05927221]
[1764637735706,3.25,127.92,127.9,0.05548276]
[1764637736003,5.93671054,127.91,127.9,0.05548276]
[1764637736202,5.93671054,127.91,127.86,69.4]
[1764637736203,3.25,127.9,127.86,69.4]
[1764637736596,3.25,127.9,127.83,69.38]
[1764637736997,3.25,127.9,127.83,7.0407]
[1764637737195,0.05344719,127.88,127.85,0.0490415]
[1764637737393,3.30344719,127.88,127.85,0.0490415]
[1764637740421,0.05344719,127.88,127.85,0.0490415]
[1764637740604,0.05344719,127.88,127.85,109.5574415]
[1764637740804,3.25,127.96,127.88,109.483]
[1764637741107,3.25,127.96,127.88,7.0379]
[1764637741108,3.25,127.94,127.88,7.0379]
[1764637741307,3.25,127.92,127.84,109.5146]
[1764637741509,112.723,127.9,127.79,178.9349]
[1764637741815,3.30160903,127.86,127.77,109.5747]
[1764637742105,3.25,127.84,127.77,109.5747]
[1764637742310,3.25,127.87,127.78,109.5652]
[1764637742612,3.25,127.87,127.79,109.5543]
[1764637743116,3.25,127.87,127.82,0.04739135]
[1764637743117,0.0593405,127.84,127.82,0.04739135]
[1764637744502,0.0593405,127.84,127.82,7.08869135]
[1764637744711,3.25,127.91,127.83,109.5246]
[1764637744904,3.25,127.91,127.85,7.0399]
[1764637745716,3.29951028,127.89,127.87,0.05034659]
[1764637746612,3.29951028,127.89,127.83,7.041]
[1764637746918,3.29951028,127.89,127.82,69.46]
[1764637747216,10.33761028,127.89,127.82,76.5012]
[1764637747418,3.25,127.88,127.82,76.5012]
[1764637747714,0.05583226,127.86,127.84,0.05638526]
[1764637748307,3.21583226,127.86,127.84,0.05638526]
[1764637749111,0.05583226,127.86,127.84,0.05638526]
[1764637750216,0.05583226,127.86,127.84,7.09658526]
[1764637750422,3.16,127.94,127.86,109.4981]
[1764637750608,3.16,127.94,127.82,5.73313081]
[1764637750818,3.16,127.94,127.82,178.9362]
[1764637750819,3.16,127.92,127.82,178.9362]
[1764637751012,3.16,127.92,127.84,109.5173]
[1764637751516,3.16,127.92,127.87,0.05545346]
[1764637751517,0.05541557,127.89,127.87,0.05545346]
[1764637753619,3.16,127.95,127.87,178.92915346]
[1764637753819,3.16,127.95,127.86,178.8797]
[1764637754021,3.16,127.95,127.86,69.38]
[1764637754216,112.5914,127.95,127.86,69.38]
[1764637754415,3.16,127.93,127.86,69.38]
[1764637754609,3.16,127.91,127.89,0.0569636]
[1764637754811,0.05874152,127.92,127.89,0.0569636]
[1764637755718,3.21874152,127.92,127.89,0.0569636]
[1764637755915,0.05874152,127.92,127.89,0.0569636]
[1764637756417,3.21874152,127.92,127.89,0.0569636]
[1764637758322,10.25494152,127.92,127.89,0.0569636]
[1764637758635,3.16,127.9,127.8,69.34]
[1764637758920,5.86241527,127.89,127.8,69.34]
[1764637759117,3.16,127.9,127.8,69.34]
[1764637759317,3.16,127.9,127.8,178.8914]
[1764637759626,0.05284736,127.86,127.84,0.05254293]
[1764637759822,3.21284736,127.86,127.84,0.05254293]
[1764637761923,0.05284736,127.86,127.84,0.05254293]
[1764637762523,3.21284736,127.86,127.84,0.05254293]
[1764637763322,0.05284736,127.86,127.84,0.05254293]
[1764637764024,0.05284736,127.86,127.84,7.09254293]
[1764637764623,3.21284736,127.86,127.84,0.05254293]
[1764637767925,0.05284736,127.86,127.84,0.05254293]
[1764637768326,3.16,127.85,127.74,109.5972]
[1764637769033,3.16,127.83,127.74,109.5972]
[1764637769229,3.16,127.83,127.77,109.5791]
[1764637769430,0.05166591,127.81,127.79,0.05296399]
[1764637770934,0.05166591,127.81,127.79,7.09596399]
[1764637771236,0.05166591,127.81,127.79,0.05296399]
[1764637771435,3.36166591,127.81,127.79,0.05296399]
[1764637772427,0.05166591,127.81,127.79,0.05296399]
[1764637772732,0.05166591,127.81,127.79,7.09596399]
[1764637773735,0.05166591,127.81,127.79,0.05296399]
[1764637775634,0.05166591,127.81,127.79,7.09606399]
[1764637776532,69.2,127.87,127.79,1.61296399]
[1764637776829,3.31,127.89,127.79,1.61296399]
[1764637776830,3.31,127.89,127.83,7.041]
[1764637777030,6.19256818,127.92,127.84,178.6993]
[1764637777228,3.31,127.92,127.86,7.0392]
[1764637777637,0.06021882,127.9,127.88,0.05234177]
[1764637777834,3.37021882,127.9,127.88,0.05234177]
[1764637778438,0.06021882,127.9,127.88,0.05234177]
[1764637778733,3.35021882,127.9,127.88,0.05234177]
[1764637778924,3.35021882,127.9,127.81,178.7025]
[1764637779124,3.29,127.9,127.81,178.7025]
[1764637779329,9.19414485,127.89,127.81,109.5425]
[1764637779531,3.29,127.88,127.81,7.0419]
[1764637779833,0.05142345,127.86,127.83,0.05460924]
[1764637780932,3.34142345,127.86,127.83,0.05460924]
[1764637782034,0.05142345,127.86,127.83,0.05460924]
[1764637782732,3.34142345,127.86,127.83,7.09540924]
[1764637783039,0.05142345,127.86,127.83,7.09540924]
[1764637783541,3.34142345,127.86,127.83,7.09540924]
[1764637784840,0.05142345,127.86,127.84,7.0403]
[1764637785636,0.05142345,127.86,127.83,0.05460924]
[1764637786043,3.34142345,127.86,127.83,0.05460924]
[1764637787440,0.05142345,127.86,127.84,7.0405]
[1764637789430,7.0353,127.94,127.88,7.0381]
[1764637789636,3.29,127.96,127.87,69.0]
[1764637789835,8.79645228,127.95,127.87,69.0]
[1764637790039,3.29,127.96,127.87,69.0]
[1764637790338,109.4033,127.98,127.9,7.0371]
[1764637790339,3.29,127.94,127.9,7.0371]
[1764637790542,0.05913751,127.93,127.91,0.06023252]
[1764637790744,3.34993635,127.93,127.91,0.06023252]
[1764637791040,0.05993635,127.93,127.91,0.06023252]
[1764637793032,3.34993635,127.93,127.91,0.06023252]
[1764637794536,0.05993635,127.93,127.91,0.06023252]
[1764637796035,0.05993635,127.93,127.91,7.09673252]
[1764637796233,0.05993635,127.93,127.92,68.86]
[1764637796434,5.89342476,127.99,127.95,7.0341]
[1764637796638,3.29,128.0,127.92,178.3062]
[1764637797347,0.05923757,127.97,127.95,0.05535612]
[1764637797848,3.34923757,127.97,127.95,0.05535612]
[1764637800246,0.05923757,127.97,127.95,0.05535612]
[1764637800550,3.34923757,127.97,127.9,109.4651]
[1764637800936,3.34923757,127.97,127.85,109.5043]
[1764637800937,3.29,127.96,127.85,109.5043]
[1764637801143,3.29,127.94,127.85,109.5043]
[1764637801542,3.34035679,127.91,127.88,0.04929329]
[1764637802556,0.05035679,127.91,127.88,0.04929329]
[1764637803048,0.05035679,127.91,127.89,7.0375]
[1764637805458,3.29,127.98,127.93,7.0352]
[1764637805844,3.29,128.01,127.93,109.4393]
[1764637806043,3.29,128.01,127.95,109.4223]
[1764637806443,3.29,128.01,127.97,0.05080488]
[1764637806651,0.05575808,127.99,127.97,0.05080488]
[1764637806851,0.05287614,127.99,127.97,109.46146046]
[1764637807346,0.05287614,127.99,127.98,7.0328]
[1764637810276,3.08,128.07,128.0,109.381]
[1764637810465,3.08,128.07,128.01,68.76]
[1764637811270,0.05777051,128.05,128.03,0.05314686]
[1764637812571,0.05777051,128.05,128.03,7.08294686]
[1764637812770,0.05777051,128.05,128.03,0.05314686]
[1764637813767,0.05777051,128.05,128.03,116.43924686]
[1764637813963,0.05777051,128.05,128.03,0.05314686]
[1764637814172,0.05777051,128.05,128.03,7.08284686]
[1764637814376,0.05777051,128.05,128.03,116.43934686]
[1764637815079,0.05777051,128.05,128.03,7.08284686]
[1764637815875,0.05777051,128.05,128.03,0.05314686]
[1764637817476,0.05777051,128.05,128.03,116.43974686]
[1764637817680,0.05777051,128.05,128.03,7.08294686]
[1764637818285,0.05777051,128.05,128.03,116.43984686]
[1764637818578,0.05777051,128.05,128.04,68.66]
[1764637818769,3.13777051,128.05,128.03,0.05314686]
[1764637819272,0.05777051,128.05,128.03,0.05314686]
[1764637821180,0.05777051,128.05,128.04,7.0295]
[1764637823673,3.08,128.12,128.07,109.3198]
[1764637823867,8.67641091,128.15,128.07,177.9198]
[1764637824082,3.08,128.16,128.07,177.9198]
[1764637824275,3.08,128.14,128.07,177.9198]
[1764637824476,3.08,128.14,128.08,109.3136]
[1764637824676,0.05991344,128.12,128.1,0.05431729]
[1764637825074,0.05991344,128.12,128.1,116.37721729]
[1764637825279,0.05991344,128.12,128.1,184.99721729]
[1764637826074,0.05991344,128.12,128.1,7.08021729]
[1764637826277,3.13991344,128.12,128.1,0.05431729]
[1764637828677,4.69991344,128.12,128.06,7.0281]
[1764637828883,3.08,128.1,128.06,7.0281]
[1764637829080,3.08,128.1,128.02,109.3572]
[1764637829273,3.08,128.08,128.03,7.0296]
[1764637829882,3.08,128.06,128.04,0.05948834]
[1764637830279,3.08,128.06,127.97,224.52519956]
[1764637830280,4.64,128.06,127.94,5.71799956]
[1764637830474,3.22,128.04,127.95,109.4199]
[1764637830680,3.22,128.04,127.95,178.0199]
[1764637830981,3.22,128.04,127.98,7.0326]
[1764637831281,0.05560386,128.02,128.0,0.05511198]
[1764637832386,0.05560386,128.02,128.0,7.08641198]
[1764637833083,0.05560386,128.02,128.0,0.05511198]
[1764637834678,0.05560386,128.02,128.0,7.08661198]
[1764637835276,3.27560386,128.02,128.0,0.05511198]
[1764637835478,3.27560386,128.02,127.95,109.4252]
[1764637835673,3.27560386,128.02,127.95,178.0052]
[1764637835674,3.22,128.02,127.95,178.0052]
[1764637835874,3.22,128.02,127.96,7.0336]
[1764637836183,3.22,128.06,127.98,109.3981]
[1764637836386,0.05921455,128.03,128.01,0.05048797]
[1764637836591,0.05921455,128.03,128.01,7.08138797]
[1764637838380,3.22921455,128.03,128.01,0.05048797]
[1764637838782,3.22921455,128.03,128.01,0.00048797]
[1764637838979,3.22921455,128.03,127.93,115.15309956]
[1764637839290,3.17,128.03,127.97,109.4065]
[1764637839679,7.2782019,128.07,127.99,7.032]
[1764637839680,10.1986,128.06,127.99,7.032]
[1764637839890,3.22336836,128.04,128.01,0.05505224]
[1764637845699,3.22336836,128.04,127.97,7.0332]
[1764637845700,3.17,128.03,127.97,7.0332]
[1764637846596,0.05885477,128.01,127.97,7.0332]
[1764637846798,3.22885477,128.01,127.97,7.0332]
[1764637847594,3.22885477,128.01,127.95,7.034]
[1764637848095,3.22885477,128.01,127.97,7.0332]
[1764637848295,3.22885477,128.01,127.96,109.413]
[1764637848697,3.22885477,128.01,127.96,7.0335]
[1764637848887,3.22885477,128.01,127.91,5.71799956]
[1764637848888,3.17,127.99,127.91,109.4564]
[1764637849087,3.17,127.97,127.9,109.4631]
[1764637849297,0.0572251,127.96,127.9,109.4631]
[1764637849498,3.2272251,127.96,127.91,7.0363]
[1764637850296,3.2272251,127.96,127.92,7.036]
[1764637850497,0.0572251,127.96,127.93,109.4416]
[1764637851000,0.0572251,127.96,127.94,7.0349]
[1764637851598,3.2272251,127.96,127.91,68.5]
[1764637851995,3.2272251,127.96,127.92,7.0359]
[1764637852404,3.2272251,127.96,127.91,68.5]
[1764637852600,3.2272251,127.96,127.91,75.5365]
[1764637853699,3.17,127.95,127.91,75.5365]
[1764637854798,3.17,127.95,127.91,7.0365]
[1764637854999,3.17,127.95,127.88,109.4849]
[1764637855300,0.05554474,127.93,127.89,109.4767]
[1764637856298,0.05554474,127.93,127.91,7.0365]
[1764637858904,0.05554474,127.93,127.91,75.4565]
[1764637861912,3.22554474,127.93,127.91,7.0365]
[1764637862209,3.22554474,127.93,127.88,7.0381]
[1764637862413,0.05554474,127.93,127.89,109.4753]
[1764637862716,3.17,127.99,127.92,109.4492]
[1764637863104,3.17,127.99,127.94,7.0348]
[1764637863714,3.22186847,127.98,127.95,0.0534494]
[1764637864501,0.05186847,127.98,127.95,0.0534494]
[1764637865913,3.22186847,127.98,127.95,0.0534494]
[1764637866803,3.22186847,127.98,127.92,7.0358]
[1764637867206,3.17,127.97,127.92,7.0358]
[1764637868113,3.17,127.97,127.9,68.42]
[1764637868114,3.17,127.95,127.86,109.4959]
[1764637868315,3.33,127.94,127.84,109.5127]
[1764637868615,3.38750641,127.92,127.84,109.5127]
[1764637868811,3.33,127.92,127.85,109.5044]
[1764637869009,3.38804928,127.9,127.85,109.5044]
[1764637869205,0.05804928,127.9,127.85,109.5044]
[1764637869611,3.38804928,127.9,127.84,109.5127]
[1764637869816,3.38804928,127.9,127.85,7.0397]
[1764637871012,3.38804928,127.9,127.86,7.039]
[1764637871213,0.05638373,127.89,127.86,7.039]
[1764637871517,0.05638373,127.89,127.83,109.5217]
[1764637871715,3.38638373,127.89,127.8,115.26799956]
[1764637871914,0.0598146,127.86,127.81,177.9638]
[1764637872221,0.0598146,127.86,127.82,7.0414]
[1764637872607,3.3898146,127.86,127.81,68.42]
[1764637872814,0.0598146,127.86,127.81,74.13799956]
[1764637873018,3.3898146,127.86,127.81,68.42]
[1764637874320,3.3898146,127.86,127.81,75.4619]
[1764637875512,3.3898146,127.86,127.81,68.42]
[1764637876211,3.3898146,127.86,127.77,115.29119956]
[1764637876412,0.05844546,127.83,127.77,183.69119956]
[1764637877418,0.05844546,127.83,127.78,109.5705]
[1764637878016,0.05844546,127.83,127.8,7.0424]
[1764637878209,3.38844546,127.83,127.77,68.4]
[1764637878410,3.38844546,127.83,127.77,7.0441]
[1764637878811,3.38844546,127.83,127.76,68.38]
[1764637879512,3.33,127.82,127.76,68.38]
[1764637879709,0.05496647,127.8,127.77,109.5795]
[1764637879924,0.05496647,127.8,127.78,7.0435]
[1764637880623,3.38496647,127.8,127.76,7.0449]
[1764637881618,0.05496647,127.8,127.76,7.0449]
[1764637883733,0.05496647,127.8,127.72,109.6162]
[1764637883734,71.76496647,127.8,127.73,7.0461]
[1764637883931,3.33,127.77,127.68,109.6492]
[1764637884131,0.05133817,127.74,127.68,109.6492]
[1764637884329,0.05133817,127.74,127.7,7.0478]
[1764637884729,0.05133817,127.74,127.69,219.2862]
[1764637886434,0.05133817,127.74,127.71,7.0473]
[1764637886834,0.05133817,127.74,127.71,109.6293]
[1764637887135,0.05133817,127.74,127.71,178.0293]
[1764637887921,0.05133817,127.74,127.72,7.0468]
[1764637888126,3.33,127.81,127.72,7.0468]
[1764637888127,3.33,127.81,127.73,109.6121]
[1764637888526,3.33,127.81,127.75,7.0453]
[1764637888932,109.5311,127.83,127.71,178.0293]
[1764637888933,3.33,127.79,127.71,178.0293]
[1764637889121,3.33,127.79,127.74,0.05175056]
[1764637889322,0.05804268,127.76,127.74,0.05175056]
[1764637892934,3.34804268,127.76,127.74,0.05175056]
[1764637894841,0.05804268,127.76,127.74,0.05175056]
[1764637895341,0.05804268,127.76,127.74,7.09765056]
[1764637896133,0.05804268,127.76,127.74,75.45765056]
[1764637896935,10.3307,127.84,127.74,75.45765056]
[1764637896936,3.29,127.84,127.78,7.0434]
[1764637897136,3.29,127.84,127.74,68.36]